[Event "Early-Titled-Tuesday-Blitz-March-19-2024"]
[Site "Chess.com"]
[Date "2024.03.19"]
[Round "7"]
[White "newauto"]
[Black "rhwr"]
[Result "0-1"]
[WhiteElo "2139"]
[BlackElo "2334"]
[TimeControl "180+1"]
[EndTime "9:19:37 PDT"]
[Termination "rhwr won by resignation"]

1. d4 {[%clk 0:03:00.9]} 1... c5 {[%clk 0:02:58.7]} 2. Nf3 {[%clk 0:03:01.8]}
2... cxd4 {[%clk 0:02:58.5]} 3. Nxd4 {[%clk 0:03:01.3]} 3... Nf6 {[%clk
0:02:58.8]} 4. c3 {[%clk 0:02:55.1]} 4... Nc6 {[%clk 0:02:58.5]} 5. Bg5 {[%clk
0:02:47.9]} 5... e6 {[%clk 0:02:56.6]} 6. e3 {[%clk 0:02:46.4]} 6... Be7 {[%clk
0:02:56.1]} 7. Nd2 {[%clk 0:02:40.7]} 7... O-O {[%clk 0:02:54.1]} 8. Bd3 {[%clk
0:02:35.9]} 8... d5 {[%clk 0:02:52.2]} 9. O-O {[%clk 0:02:32]} 9... h6 {[%clk
0:02:48]} 10. Bh4 {[%clk 0:02:27.8]} 10... e5 {[%clk 0:02:45.6]} 11. Nxc6 {[%clk
0:02:25]} 11... bxc6 {[%clk 0:02:45.5]} 12. e4 {[%clk 0:02:17.1]} 12... Qb6
{[%clk 0:02:33.5]} 13. exd5 {[%clk 0:02:08.3]} 13... cxd5 {[%clk 0:02:30.8]} 14.
Qb3 {[%clk 0:01:58.7]} 14... e4 {[%clk 0:02:21.5]} 15. Be2 {[%clk 0:01:56.3]}
15... Be6 {[%clk 0:02:19.4]} 16. Qxb6 {[%clk 0:01:52.7]} 16... axb6 {[%clk
0:02:19.2]} 17. Nb3 {[%clk 0:01:51.8]} 17... g5 {[%clk 0:02:15.6]} 18. Bg3
{[%clk 0:01:51.4]} 18... Nd7 {[%clk 0:02:02.1]} 19. Rfd1 {[%clk 0:01:43.8]}
19... f5 {[%clk 0:01:58.1]} 20. f4 {[%clk 0:01:30.6]} 20... Bc5+ {[%clk
0:01:47.8]} 21. Nxc5 {[%clk 0:01:28.3]} 21... Nxc5 {[%clk 0:01:38.7]} 22. fxg5
{[%clk 0:01:10.3]} 22... hxg5 {[%clk 0:01:38.2]} 23. Bd6 {[%clk 0:01:09.7]}
23... Rfc8 {[%clk 0:01:37.2]} 24. Be7 {[%clk 0:01:04.9]} 24... g4 {[%clk
0:01:34.4]} 25. Bg5 {[%clk 0:01:00.5]} 25... Kf7 {[%clk 0:01:26.8]} 26. Be3
{[%clk 0:00:57.4]} 26... Nd7 {[%clk 0:01:14.7]} 27. Rf1 {[%clk 0:00:51]} 27...
Kg6 {[%clk 0:01:10.2]} 28. Bd4 {[%clk 0:00:49.7]} 28... Nc5 {[%clk 0:01:03.2]}
29. g3 {[%clk 0:00:49.3]} 29... Bd7 {[%clk 0:00:41]} 30. Rfd1 {[%clk 0:00:30.2]}
30... Bc6 {[%clk 0:00:34]} 31. b3 {[%clk 0:00:23.9]} 31... Rcb8 {[%clk
0:00:28.2]} 32. Kf2 {[%clk 0:00:20.3]} 32... Rb7 {[%clk 0:00:27.3]} 33. Ke3
{[%clk 0:00:20.3]} 33... Rh7 {[%clk 0:00:25.3]} 34. Rh1 {[%clk 0:00:18.2]} 34...
Ne6 {[%clk 0:00:22.3]} 35. Bxb6 {[%clk 0:00:17.2]} 35... Rah8 {[%clk 0:00:14.8]}
36. h4 {[%clk 0:00:12]} 36... gxh3 {[%clk 0:00:13.7]} 37. Rh2 {[%clk 0:00:11]}
37... f4+ {[%clk 0:00:08.9]} 38. gxf4 {[%clk 0:00:10.3]} 38... Kf5 {[%clk
0:00:09.6]} 39. Rg1 {[%clk 0:00:08.5]} 39... Rg7 {[%clk 0:00:09.3]} 40. Rxg7
{[%clk 0:00:07.6]} 40... Nxg7 {[%clk 0:00:09.6]} 41. Bd4 {[%clk 0:00:06.7]}
41... Rh7 {[%clk 0:00:09.1]} 42. Bxg7 {[%clk 0:00:06.8]} 42... Rxg7 {[%clk
0:00:09.5]} 43. Rxh3 {[%clk 0:00:07.7]} 43... Ra7 {[%clk 0:00:09.5]} 44. a4
{[%clk 0:00:07.5]} 44... Bd7 {[%clk 0:00:07.2]} 45. Rh5+ {[%clk 0:00:06.6]}
45... Ke6 {[%clk 0:00:07.5]} 46. Rh6+ {[%clk 0:00:06.8]} 46... Kf5 {[%clk
0:00:07.6]} 47. Rd6 {[%clk 0:00:06.5]} 47... Be6 {[%clk 0:00:07.9]} 48. Bg4+
{[%clk 0:00:06.2]} 48... Kxg4 {[%clk 0:00:07.7]} 49. Rxd5 {[%clk 0:00:07.1]}
49... Bxd5 {[%clk 0:00:07.6]} 50. Kd4 {[%clk 0:00:06.3]} 50... Bxb3 {[%clk
0:00:06.9]} 51. a5 {[%clk 0:00:06.2]} 51... Rxa5 {[%clk 0:00:07]} 0-1

[Event "Early-Titled-Tuesday-Blitz-March-19-2024"]
[Site "Chess.com"]
[Date "2024.03.19"]
[Round "7"]
[White "Sofia_Blokhin"]
[Black "Viktoker"]
[Result "0-1"]
[WhiteElo "2258"]
[BlackElo "2551"]
[TimeControl "180+1"]
[EndTime "9:19:38 PDT"]
[Termination "Viktoker won on time"]

1. d4 {[%clk 0:03:00.9]} 1... Nf6 {[%clk 0:02:55.2]} 2. c4 {[%clk 0:03:00.1]}
2... e6 {[%clk 0:02:53.9]} 3. Nc3 {[%clk 0:02:59.4]} 3... d5 {[%clk 0:02:54.3]}
4. Nf3 {[%clk 0:02:58.8]} 4... Be7 {[%clk 0:02:52.2]} 5. e3 {[%clk 0:02:59]}
5... a6 {[%clk 0:02:48.9]} 6. cxd5 {[%clk 0:02:58.1]} 6... exd5 {[%clk
0:02:48.5]} 7. Bd3 {[%clk 0:02:58.2]} 7... Bg4 {[%clk 0:02:47.4]} 8. O-O {[%clk
0:02:56.3]} 8... O-O {[%clk 0:02:47]} 9. Qc2 {[%clk 0:02:54.4]} 9... Nbd7 {[%clk
0:02:44.2]} 10. Ne5 {[%clk 0:02:51.1]} 10... Bh5 {[%clk 0:02:41.3]} 11. f4
{[%clk 0:02:50]} 11... c5 {[%clk 0:02:34.9]} 12. Bf5 {[%clk 0:02:44.3]} 12...
Bg6 {[%clk 0:02:22.8]} 13. Nxd7 {[%clk 0:02:34]} 13... Qxd7 {[%clk 0:02:05.4]}
14. Bxg6 {[%clk 0:02:20.1]} 14... hxg6 {[%clk 0:01:56.8]} 15. f5 {[%clk
0:02:16.4]} 15... Bd6 {[%clk 0:01:43.1]} 16. fxg6 {[%clk 0:02:11.6]} 16... fxg6
{[%clk 0:01:42]} 17. Qxg6 {[%clk 0:01:55.6]} 17... Ng4 {[%clk 0:01:40.7]} 18.
Bd2 {[%clk 0:01:41.8]} 18... Bxh2+ {[%clk 0:01:39.3]} 19. Kh1 {[%clk 0:01:33.4]}
19... Bg3 {[%clk 0:01:31.7]} 20. Nxd5 {[%clk 0:01:27.7]} 20... Nf2+ {[%clk
0:01:15.2]} 21. Kg1 {[%clk 0:01:19.2]} 21... Qxd5 {[%clk 0:01:14.7]} 22. Qxg3
{[%clk 0:01:18.4]} 22... Ne4 {[%clk 0:01:14.7]} 23. Qe1 {[%clk 0:01:07.6]} 23...
Rxf1+ {[%clk 0:01:13.1]} 24. Kxf1 {[%clk 0:01:06.2]} 24... Rf8+ {[%clk
0:01:12.9]} 25. Kg1 {[%clk 0:01:06.3]} 25... cxd4 {[%clk 0:01:12.7]} 26. exd4
{[%clk 0:01:05.2]} 26... Qxd4+ {[%clk 0:01:13.6]} 27. Be3 {[%clk 0:01:03.7]}
27... Qxb2 {[%clk 0:01:13.6]} 28. Rb1 {[%clk 0:00:59]} 28... Qxa2 {[%clk
0:01:02.7]} 29. Rxb7 {[%clk 0:00:58.8]} 29... Qd5 {[%clk 0:00:59.6]} 30. Rb6
{[%clk 0:00:54.5]} 30... Qd3 {[%clk 0:00:50.9]} 31. Rb7 {[%clk 0:00:36.8]} 31...
a5 {[%clk 0:00:45.8]} 32. Ra7 {[%clk 0:00:19.9]} 32... Rf1+ {[%clk 0:00:41.8]}
33. Qxf1 {[%clk 0:00:19.4]} 33... Qxe3+ {[%clk 0:00:42.2]} 34. Kh2 {[%clk
0:00:17.5]} 34... Qxa7 {[%clk 0:00:22]} 35. Qc4+ {[%clk 0:00:17.2]} 35... Kh8
{[%clk 0:00:20.2]} 36. Qxe4 {[%clk 0:00:17.7]} 36... g6 {[%clk 0:00:19.1]} 37.
Qe8+ {[%clk 0:00:16.7]} 37... Kh7 {[%clk 0:00:19.1]} 38. Qe4 {[%clk 0:00:15.6]}
38... a4 {[%clk 0:00:18.7]} 39. Qh4+ {[%clk 0:00:14.8]} 39... Kg7 {[%clk
0:00:18.8]} 40. Qb4 {[%clk 0:00:12.1]} 40... Qd7 {[%clk 0:00:18.6]} 41. Qc3+
{[%clk 0:00:10.7]} 41... Kh7 {[%clk 0:00:17.9]} 42. Qc4 {[%clk 0:00:09.4]} 42...
a3 {[%clk 0:00:16.6]} 43. Qa6 {[%clk 0:00:09.3]} 43... Qe7 {[%clk 0:00:14.4]}
44. Qa8 {[%clk 0:00:07.8]} 44... Kg7 {[%clk 0:00:13.1]} 45. Qa6 {[%clk
0:00:07.7]} 45... Kh6 {[%clk 0:00:13.1]} 46. Qa4 {[%clk 0:00:07.8]} 46... Qe5+
{[%clk 0:00:10.7]} 47. Kg1 {[%clk 0:00:06.6]} 47... Qc5+ {[%clk 0:00:09.9]} 48.
Kh2 {[%clk 0:00:06]} 48... Kg5 {[%clk 0:00:09.9]} 49. Kg3 {[%clk 0:00:04.4]}
49... Qe3+ {[%clk 0:00:09.6]} 50. Kh2 {[%clk 0:00:04.5]} 50... Qf4+ {[%clk
0:00:09.7]} 51. Qxf4+ {[%clk 0:00:02.5]} 51... Kxf4 {[%clk 0:00:10.6]} 52. g3+
{[%clk 0:00:01.5]} 52... Ke3 {[%clk 0:00:11]} 0-1

[Event "Early-Titled-Tuesday-Blitz-March-19-2024"]
[Site "Chess.com"]
[Date "2024.03.19"]
[Round "7"]
[White "wonderfultime"]
[Black "ViIIagra"]
[Result "1/2-1/2"]
[WhiteElo "3068"]
[BlackElo "2928"]
[TimeControl "180+1"]
[EndTime "9:19:39 PDT"]
[Termination "Game drawn by repetition"]

1. d4 {[%clk 0:03:00.9]} 1... d6 {[%clk 0:02:59.2]} 2. e4 {[%clk 0:02:58.3]}
2... Nf6 {[%clk 0:02:59]} 3. Nc3 {[%clk 0:02:56.5]} 3... e5 {[%clk 0:02:59.6]}
4. Nf3 {[%clk 0:02:55.6]} 4... Nbd7 {[%clk 0:02:59.2]} 5. Bc4 {[%clk 0:02:55.5]}
5... Be7 {[%clk 0:02:59.8]} 6. O-O {[%clk 0:02:55.4]} 6... O-O {[%clk
0:03:00.2]} 7. Re1 {[%clk 0:02:55.3]} 7... c6 {[%clk 0:02:59.5]} 8. a4 {[%clk
0:02:55.9]} 8... h6 {[%clk 0:02:59.6]} 9. h3 {[%clk 0:02:54.2]} 9... Re8 {[%clk
0:02:59.4]} 10. a5 {[%clk 0:02:54]} 10... Bf8 {[%clk 0:02:56.4]} 11. Ba2 {[%clk
0:02:53.5]} 11... exd4 {[%clk 0:02:46.8]} 12. Nxd4 {[%clk 0:02:52.3]} 12... Nc5
{[%clk 0:02:47.1]} 13. f3 {[%clk 0:02:36.2]} 13... d5 {[%clk 0:02:21.2]} 14. e5
{[%clk 0:02:18]} 14... Nh5 {[%clk 0:02:20.6]} 15. f4 {[%clk 0:02:06.1]} 15...
Ng3 {[%clk 0:02:13]} 16. Be3 {[%clk 0:02:06.3]} 16... Nce4 {[%clk 0:02:05.8]}
17. Nxe4 {[%clk 0:01:41.4]} 17... Nxe4 {[%clk 0:02:03.9]} 18. a6 {[%clk
0:01:42.1]} 18... Bc5 {[%clk 0:01:41.5]} 19. axb7 {[%clk 0:01:34.6]} 19... Bxb7
{[%clk 0:01:42.4]} 20. c3 {[%clk 0:01:35]} 20... Bb6 {[%clk 0:01:31.1]} 21. Bb1
{[%clk 0:01:33.7]} 21... c5 {[%clk 0:01:17.7]} 22. Nf5 {[%clk 0:01:32.8]} 22...
Re6 {[%clk 0:00:44.8]} 23. Bxe4 {[%clk 0:01:09.4]} 23... dxe4 {[%clk 0:00:45.7]}
24. Nd6 {[%clk 0:01:10.2]} 24... Bc6 {[%clk 0:00:42.4]} 25. Qh5 {[%clk 0:01:03]}
25... Rxd6 {[%clk 0:00:33]} 26. exd6 {[%clk 0:01:02.3]} 26... Qxd6 {[%clk
0:00:33.9]} 27. Rad1 {[%clk 0:01:02.5]} 27... Qe7 {[%clk 0:00:34.3]} 28. f5
{[%clk 0:01:01.1]} 28... f6 {[%clk 0:00:32.6]} 29. Qg4 {[%clk 0:00:57]} 29...
Kh8 {[%clk 0:00:32.1]} 30. Rd2 {[%clk 0:00:54.9]} 30... Re8 {[%clk 0:00:31.9]}
31. Red1 {[%clk 0:00:51.8]} 31... Qf7 {[%clk 0:00:31.7]} 32. Rd6 {[%clk
0:00:48.9]} 32... Ba4 {[%clk 0:00:31.8]} 33. R1d2 {[%clk 0:00:48.4]} 33... Bb5
{[%clk 0:00:32.4]} 34. Re6 {[%clk 0:00:44.3]} 34... Bd3 {[%clk 0:00:29.9]} 35.
Rxe8+ {[%clk 0:00:37.5]} 35... Qxe8 {[%clk 0:00:30.8]} 36. Qf4 {[%clk
0:00:35.2]} 36... c4 {[%clk 0:00:30]} 37. Rd1 {[%clk 0:00:27.5]} 37... Qe5
{[%clk 0:00:29.8]} 38. Qf2 {[%clk 0:00:25.2]} 38... Bxe3 {[%clk 0:00:24.7]} 39.
Qxe3 {[%clk 0:00:26.1]} 39... Qxf5 {[%clk 0:00:25.4]} 40. Ra1 {[%clk 0:00:26.2]}
40... Qb5 {[%clk 0:00:22.2]} 41. Rxa7 {[%clk 0:00:24]} 41... Qxb2 {[%clk
0:00:20.8]} 42. Re7 {[%clk 0:00:13.1]} 42... Qxc3 {[%clk 0:00:16.7]} 43. Kh2
{[%clk 0:00:06.1]} 43... Qa5 {[%clk 0:00:15.6]} 44. Qg3 {[%clk 0:00:04.1]} 44...
Qg5 {[%clk 0:00:14.9]} 45. Qc7 {[%clk 0:00:04.6]} 45... Kh7 {[%clk 0:00:13.7]}
46. Re8 {[%clk 0:00:04.5]} 46... h5 {[%clk 0:00:12.5]} 47. Qc8 {[%clk
0:00:04.8]} 47... Qf4+ {[%clk 0:00:11.6]} 48. Kh1 {[%clk 0:00:04.7]} 48... Qf1+
{[%clk 0:00:05.9]} 49. Kh2 {[%clk 0:00:05.4]} 49... Qf4+ {[%clk 0:00:06.8]} 50.
Kh1 {[%clk 0:00:06.2]} 50... Qf1+ {[%clk 0:00:03.9]} 51. Kh2 {[%clk 0:00:06.9]}
51... Qf4+ {[%clk 0:00:04.2]} 1/2-1/2

[Event "Early-Titled-Tuesday-Blitz-March-19-2024"]
[Site "Chess.com"]
[Date "2024.03.19"]
[Round "7"]
[White "willcab71"]
[Black "ArchibaldCerveza29"]
[Result "1-0"]
[WhiteElo "2145"]
[BlackElo "2398"]
[TimeControl "180+1"]
[EndTime "9:19:39 PDT"]
[Termination "willcab71 won by resignation"]

1. d4 {[%clk 0:03:00.9]} 1... Nf6 {[%clk 0:01:53.4]} 2. c4 {[%clk 0:02:59.3]}
2... g6 {[%clk 0:01:53.8]} 3. Nc3 {[%clk 0:02:58.7]} 3... Bg7 {[%clk 0:01:54.4]}
4. e4 {[%clk 0:02:59.2]} 4... d6 {[%clk 0:01:55]} 5. Nge2 {[%clk 0:02:59.6]}
5... O-O {[%clk 0:01:55.3]} 6. Ng3 {[%clk 0:02:58.8]} 6... c5 {[%clk 0:01:53.6]}
7. d5 {[%clk 0:02:58.7]} 7... e6 {[%clk 0:01:54.2]} 8. Be2 {[%clk 0:02:57.7]}
8... h5 {[%clk 0:01:53.9]} 9. Bg5 {[%clk 0:02:40.5]} 9... exd5 {[%clk
0:01:48.3]} 10. cxd5 {[%clk 0:02:39.7]} 10... Qa5 {[%clk 0:01:42.2]} 11. Qd2
{[%clk 0:02:36.6]} 11... Re8 {[%clk 0:01:38.7]} 12. O-O {[%clk 0:02:30.9]} 12...
a6 {[%clk 0:01:31.3]} 13. a4 {[%clk 0:02:24.9]} 13... Nbd7 {[%clk 0:01:29.7]}
14. f3 {[%clk 0:01:48.5]} 14... Ne5 {[%clk 0:01:25.7]} 15. Nh1 {[%clk
0:01:45.4]} 15... Qb4 {[%clk 0:01:24.4]} 16. Nf2 {[%clk 0:01:39.8]} 16... Nc4
{[%clk 0:01:23.8]} 17. Bxc4 {[%clk 0:01:39.7]} 17... Qxc4 {[%clk 0:01:24.7]} 18.
Rfd1 {[%clk 0:01:25.6]} 18... Qb4 {[%clk 0:01:19]} 19. a5 {[%clk 0:01:13]} 19...
c4 {[%clk 0:01:15.1]} 20. Be3 {[%clk 0:01:08.4]} 20... Bd7 {[%clk 0:01:03]} 21.
Ra3 {[%clk 0:00:58.3]} 21... b5 {[%clk 0:00:32.9]} 22. Rda1 {[%clk 0:00:32.8]}
22... Nxd5 {[%clk 0:00:15.1]} 23. exd5 {[%clk 0:00:24.6]} 23... Bf5 {[%clk
0:00:11.8]} 24. Nfd1 {[%clk 0:00:20.2]} 24... Re5 {[%clk 0:00:09.7]} 25. Bb6
{[%clk 0:00:18.9]} 25... Rae8 {[%clk 0:00:09.4]} 26. Ne3 {[%clk 0:00:17.7]}
26... Rxe3 {[%clk 0:00:08.7]} 27. Bxe3 {[%clk 0:00:17.7]} 27... Rxe3 {[%clk
0:00:07.5]} 28. Qxe3 {[%clk 0:00:17.8]} 28... Qxb2 {[%clk 0:00:08.4]} 29. R1a2
{[%clk 0:00:13.3]} 29... Qb4 {[%clk 0:00:03.3]} 30. g3 {[%clk 0:00:10.2]} 30...
Qc5 {[%clk 0:00:03.7]} 31. Qxc5 {[%clk 0:00:10.1]} 31... dxc5 {[%clk 0:00:04.6]}
32. Ne4 {[%clk 0:00:10.1]} 32... b4 {[%clk 0:00:05.5]} 33. Ra4 {[%clk
0:00:09.7]} 33... b3 {[%clk 0:00:05.7]} 34. Re2 {[%clk 0:00:08.8]} 34... b2
{[%clk 0:00:06.2]} 35. Rxb2 {[%clk 0:00:06.5]} 35... Bxb2 {[%clk 0:00:05.7]} 36.
Rxc4 {[%clk 0:00:07.1]} 36... Kg7 {[%clk 0:00:05.4]} 37. Kg2 {[%clk 0:00:06.4]}
37... Bd4 {[%clk 0:00:04.8]} 38. Nxc5 {[%clk 0:00:05.5]} 38... Bxc5 {[%clk
0:00:03.1]} 39. Rxc5 {[%clk 0:00:05.2]} 39... Bd3 {[%clk 0:00:03.8]} 40. Rc6
{[%clk 0:00:04.6]} 40... Bb5 {[%clk 0:00:03.5]} 41. Rb6 {[%clk 0:00:04]} 41...
Kf8 {[%clk 0:00:03.8]} 42. d6 {[%clk 0:00:04.5]} 42... Ke8 {[%clk 0:00:03.9]}
43. h4 {[%clk 0:00:04.8]} 43... Kd7 {[%clk 0:00:04.4]} 44. Kf2 {[%clk
0:00:05.2]} 44... Bc4 {[%clk 0:00:04.8]} 45. f4 {[%clk 0:00:05.6]} 45... f5
{[%clk 0:00:05.3]} 46. Ke3 {[%clk 0:00:06]} 46... Ke6 {[%clk 0:00:05.9]} 47. Kd4
{[%clk 0:00:06.5]} 47... Bf1 {[%clk 0:00:06.4]} 48. Kc5 {[%clk 0:00:06.6]} 48...
Kd7 {[%clk 0:00:07.1]} 49. Rb7+ {[%clk 0:00:05.1]} 49... Kc8 {[%clk 0:00:07.5]}
50. Rg7 {[%clk 0:00:05.4]} 50... Bg2 {[%clk 0:00:03.1]} 51. Rxg6 {[%clk
0:00:05.6]} 51... Be4 {[%clk 0:00:02.8]} 52. Rg5 {[%clk 0:00:06]} 1-0

[Event "Early-Titled-Tuesday-Blitz-March-19-2024"]
[Site "Chess.com"]
[Date "2024.03.19"]
[Round "7"]
[White "MdChess1734"]
[Black "Predator0608"]
[Result "1/2-1/2"]
[WhiteElo "2363"]
[BlackElo "2550"]
[TimeControl "180+1"]
[EndTime "9:19:45 PDT"]
[Termination "Game drawn - insufficient material"]

1. e4 {[%clk 0:02:52.9]} 1... c5 {[%clk 0:02:59.9]} 2. Nf3 {[%clk 0:02:51.9]}
2... d6 {[%clk 0:03:00.3]} 3. d4 {[%clk 0:02:52.2]} 3... cxd4 {[%clk 0:03:01.2]}
4. Nxd4 {[%clk 0:02:52.8]} 4... Nf6 {[%clk 0:03:01.8]} 5. Nc3 {[%clk 0:02:53.3]}
5... a6 {[%clk 0:03:02.3]} 6. Bg5 {[%clk 0:02:53.7]} 6... e6 {[%clk 0:03:01.3]}
7. f4 {[%clk 0:02:53.7]} 7... Nbd7 {[%clk 0:03:01.3]} 8. Qf3 {[%clk 0:02:53.7]}
8... Be7 {[%clk 0:03:00.8]} 9. O-O-O {[%clk 0:02:52.9]} 9... Qc7 {[%clk
0:03:01.2]} 10. g4 {[%clk 0:02:51.8]} 10... b5 {[%clk 0:03:01]} 11. Bxf6 {[%clk
0:02:46.1]} 11... Nxf6 {[%clk 0:03:01.9]} 12. g5 {[%clk 0:02:46.2]} 12... Nd7
{[%clk 0:03:02]} 13. f5 {[%clk 0:02:46.8]} 13... Bxg5+ {[%clk 0:03:02.3]} 14.
Kb1 {[%clk 0:02:47]} 14... Ne5 {[%clk 0:02:59.1]} 15. Qh5 {[%clk 0:02:42.4]}
15... Qd8 {[%clk 0:02:59.2]} 16. fxe6 {[%clk 0:02:37.3]} 16... g6 {[%clk
0:02:59.6]} 17. exf7+ {[%clk 0:02:18.9]} 17... Kxf7 {[%clk 0:03:00.5]} 18. Qe2
{[%clk 0:02:15.8]} 18... Kg7 {[%clk 0:03:00.8]} 19. Qg2 {[%clk 0:02:08.7]} 19...
Ra7 {[%clk 0:02:48.4]} 20. Be2 {[%clk 0:02:03.9]} 20... Rf8 {[%clk 0:02:46.4]}
21. Nd5 {[%clk 0:01:27.2]} 21... Raf7 {[%clk 0:02:37.9]} 22. Rdf1 {[%clk
0:01:19.6]} 22... Bh4 {[%clk 0:02:17.8]} 23. Rxf7+ {[%clk 0:00:50.9]} 23... Rxf7
{[%clk 0:02:18.7]} 24. Rf1 {[%clk 0:00:49.6]} 24... Qf8 {[%clk 0:01:30.9]} 25.
Rxf7+ {[%clk 0:00:40]} 25... Qxf7 {[%clk 0:01:31.8]} 26. a3 {[%clk 0:00:37.5]}
26... Qa7 {[%clk 0:01:17.3]} 27. Qg1 {[%clk 0:00:32.9]} 27... Qf7 {[%clk
0:01:17.8]} 28. Qg2 {[%clk 0:00:32.6]} 28... Bf2 {[%clk 0:01:06.8]} 29. Nf3
{[%clk 0:00:19.8]} 29... Nxf3 {[%clk 0:00:53.1]} 30. Bxf3 {[%clk 0:00:18.7]}
30... Bd4 {[%clk 0:00:53.3]} 31. Bg4 {[%clk 0:00:18.5]} 31... Bb7 {[%clk
0:00:29.9]} 32. h4 {[%clk 0:00:17.2]} 32... Be5 {[%clk 0:00:30.4]} 33. h5 {[%clk
0:00:16.3]} 33... Bxd5 {[%clk 0:00:26.3]} 34. exd5 {[%clk 0:00:16.1]} 34... Qf6
{[%clk 0:00:26.9]} 35. c3 {[%clk 0:00:12.4]} 35... Qg5 {[%clk 0:00:27]} 36. hxg6
{[%clk 0:00:11.7]} 36... Qxg6+ {[%clk 0:00:26.8]} 37. Ka2 {[%clk 0:00:11.5]}
37... h5 {[%clk 0:00:25.6]} 38. Bf3 {[%clk 0:00:09.7]} 38... Qxg2 {[%clk
0:00:26.5]} 39. Bxg2 {[%clk 0:00:10.3]} 39... Kf6 {[%clk 0:00:26.7]} 40. Kb3
{[%clk 0:00:10.3]} 40... a5 {[%clk 0:00:24.4]} 41. a4 {[%clk 0:00:09.3]} 41...
b4 {[%clk 0:00:22]} 42. cxb4 {[%clk 0:00:09]} 42... axb4 {[%clk 0:00:22.9]} 43.
Kxb4 {[%clk 0:00:08.9]} 43... Bxb2 {[%clk 0:00:22.5]} 44. Kc4 {[%clk 0:00:08.1]}
44... Ke5 {[%clk 0:00:19.2]} 45. a5 {[%clk 0:00:07.9]} 45... Bd4 {[%clk
0:00:19.3]} 46. Bh3 {[%clk 0:00:08.4]} 46... Bc5 {[%clk 0:00:17.9]} 47. Be6
{[%clk 0:00:08]} 47... h4 {[%clk 0:00:18.1]} 48. Kb5 {[%clk 0:00:08.5]} 48...
Ke4 {[%clk 0:00:15.6]} 49. a6 {[%clk 0:00:08.1]} 49... h3 {[%clk 0:00:14.1]} 50.
Bxh3 {[%clk 0:00:07.4]} 50... Kxd5 {[%clk 0:00:15]} 51. Bg2+ {[%clk 0:00:06.7]}
51... Ke5 {[%clk 0:00:15.3]} 52. Kc6 {[%clk 0:00:06.7]} 52... Bg1 {[%clk
0:00:15.7]} 53. Kb7 {[%clk 0:00:06.5]} 53... Ke6 {[%clk 0:00:14.8]} 54. a7
{[%clk 0:00:05.9]} 54... Bxa7 {[%clk 0:00:15.3]} 55. Kxa7 {[%clk 0:00:06.6]}
55... d5 {[%clk 0:00:16.2]} 56. Bxd5+ {[%clk 0:00:06.3]} 1/2-1/2

[Event "Early-Titled-Tuesday-Blitz-March-19-2024"]
[Site "Chess.com"]
[Date "2024.03.19"]
[Round "7"]
[White "Bauman_Guy"]
[Black "Aradhya2000"]
[Result "1-0"]
[WhiteElo "2929"]
[BlackElo "2722"]
[TimeControl "180+1"]
[EndTime "9:19:46 PDT"]
[Termination "Bauman_Guy won by resignation"]

1. e4 {[%clk 0:03:00.9]} 1... e5 {[%clk 0:03:00.2]} 2. Nf3 {[%clk 0:03:01.1]}
2... Nc6 {[%clk 0:03:00.9]} 3. Bb5 {[%clk 0:03:01.8]} 3... a6 {[%clk 0:03:00.4]}
4. Ba4 {[%clk 0:03:02]} 4... Nf6 {[%clk 0:03:01.1]} 5. O-O {[%clk 0:02:59.8]}
5... Be7 {[%clk 0:03:01.2]} 6. d3 {[%clk 0:02:59.4]} 6... b5 {[%clk 0:03:01]} 7.
Bb3 {[%clk 0:02:59.9]} 7... d6 {[%clk 0:03:01.6]} 8. a4 {[%clk 0:03:00.6]} 8...
Rb8 {[%clk 0:03:01.3]} 9. axb5 {[%clk 0:03:00.3]} 9... axb5 {[%clk 0:03:01.5]}
10. Nc3 {[%clk 0:03:00.9]} 10... O-O {[%clk 0:03:01.5]} 11. Nd5 {[%clk
0:02:57.9]} 11... Be6 {[%clk 0:02:47.8]} 12. c3 {[%clk 0:02:54.6]} 12... Qd7
{[%clk 0:02:45.4]} 13. h3 {[%clk 0:02:52.5]} 13... Ra8 {[%clk 0:02:43.4]} 14.
Be3 {[%clk 0:02:50.4]} 14... Bxd5 {[%clk 0:02:38.8]} 15. exd5 {[%clk 0:02:49.4]}
15... Na5 {[%clk 0:02:39]} 16. Ba2 {[%clk 0:02:49.1]} 16... c6 {[%clk
0:02:34.2]} 17. b4 {[%clk 0:02:39.1]} 17... Nb7 {[%clk 0:02:34.5]} 18. dxc6
{[%clk 0:02:38.2]} 18... Qxc6 {[%clk 0:02:35.4]} 19. c4 {[%clk 0:02:31.3]} 19...
Rfc8 {[%clk 0:02:16]} 20. c5 {[%clk 0:02:26.2]} 20... Nd5 {[%clk 0:02:10.1]} 21.
Qb3 {[%clk 0:02:20.2]} 21... Rxa2 {[%clk 0:02:03.9]} 22. Rxa2 {[%clk 0:02:20.3]}
22... dxc5 {[%clk 0:02:04.1]} 23. Nxe5 {[%clk 0:02:07.2]} 23... Qe6 {[%clk
0:02:03.5]} 24. Ra7 {[%clk 0:01:57]} 24... Qxe5 {[%clk 0:01:41.9]} 25. Rxb7
{[%clk 0:01:56.6]} 25... Bd6 {[%clk 0:01:42.2]} 26. g3 {[%clk 0:01:52.6]} 26...
c4 {[%clk 0:00:56.6]} 27. dxc4 {[%clk 0:01:19]} 27... bxc4 {[%clk 0:00:57.5]}
28. Qa3 {[%clk 0:01:16.5]} 28... c3 {[%clk 0:00:55.5]} 29. Bc5 {[%clk
0:01:10.3]} 29... h5 {[%clk 0:00:47.2]} 30. Rd7 {[%clk 0:01:00.3]} 30... Bb8
{[%clk 0:00:41.7]} 31. Qb3 {[%clk 0:00:57.9]} 31... Nc7 {[%clk 0:00:27.2]} 32.
Qxf7+ {[%clk 0:00:56.5]} 32... Kh7 {[%clk 0:00:26.2]} 33. Bd4 {[%clk 0:00:55.1]}
33... Qg5 {[%clk 0:00:21.2]} 34. Bxg7 {[%clk 0:00:49.7]} 34... Qg6 {[%clk
0:00:19.2]} 35. Bxc3+ {[%clk 0:00:44.9]} 35... Qxf7 {[%clk 0:00:18.9]} 36. Rxf7+
{[%clk 0:00:45.8]} 36... Kg6 {[%clk 0:00:19.5]} 37. Rf6+ {[%clk 0:00:46]} 37...
Kh7 {[%clk 0:00:19.1]} 38. Rc6 {[%clk 0:00:46.9]} 38... Re8 {[%clk 0:00:19.1]}
39. Rd1 {[%clk 0:00:46.7]} 39... Re7 {[%clk 0:00:17.3]} 40. Bf6 {[%clk
0:00:40.2]} 40... Rf7 {[%clk 0:00:15.9]} 41. Be5 {[%clk 0:00:40.5]} 41... Na6
{[%clk 0:00:15.6]} 42. Bxb8 {[%clk 0:00:33.3]} 42... Nxb8 {[%clk 0:00:15.6]} 43.
Rcd6 {[%clk 0:00:34.2]} 43... Rb7 {[%clk 0:00:14.8]} 44. R1d4 {[%clk 0:00:33.4]}
44... Kg7 {[%clk 0:00:13.7]} 45. Kg2 {[%clk 0:00:33.5]} 45... Rb5 {[%clk
0:00:13.6]} 46. Kf3 {[%clk 0:00:33.2]} 46... Rf5+ {[%clk 0:00:13.4]} 47. Ke2
{[%clk 0:00:33.5]} 47... Re5+ {[%clk 0:00:13.6]} 48. Kd2 {[%clk 0:00:33.4]}
48... Rf5 {[%clk 0:00:14.1]} 49. f4 {[%clk 0:00:33.9]} 49... Rb5 {[%clk
0:00:13.6]} 50. Kc3 {[%clk 0:00:34.2]} 50... Rb7 {[%clk 0:00:13.6]} 51. Kb3
{[%clk 0:00:34]} 51... Ra7 {[%clk 0:00:12]} 52. Rb6 {[%clk 0:00:30.5]} 52... Nd7
{[%clk 0:00:11.9]} 53. Rb5 {[%clk 0:00:29.9]} 53... Nf6 {[%clk 0:00:11.8]} 54.
g4 {[%clk 0:00:30.1]} 54... hxg4 {[%clk 0:00:11.7]} 55. hxg4 {[%clk 0:00:31]}
55... Kf7 {[%clk 0:00:10]} 56. g5 {[%clk 0:00:31.3]} 56... Ng4 {[%clk
0:00:10.5]} 57. f5 {[%clk 0:00:30.7]} 57... Ne3 {[%clk 0:00:11.1]} 58. Re5
{[%clk 0:00:29.4]} 58... Ng2 {[%clk 0:00:05.3]} 59. Rg4 {[%clk 0:00:27.4]} 1-0